[Event "RUS-ch Girls U21 2021"]
[Site "Loo"]
[Date "2021.04.21"]
[Round "1.9"]
[White "Badmaeva, Baina"]
[Black "Garmash, Aliona"]
[Result "0-1"]
[ECO "B13"]
[WhiteElo "1751"]
[BlackElo "2120"]
[Annotator "NA"]
[PlyCount "74"]
[EventDate "2021.04.21"]
[EventType "swiss"]
[EventCountry "RUS"]
[SourceTitle "playchess.com"]
[Source "ChessBase"]
[SourceQuality "1"]
[TimeControl "40/5400+30:1800+30"]

1. e4 {[%emt 0:00:00]} c6 {[%emt 0:00:00]} 2. d4 {[%emt 0:00:00]} d5 {[%emt 0:00:00]} 3. exd5 {[%emt 0:00:00]} cxd5 {[%emt 0:00:00]} 4. Bd3 {[%emt 0:00:15]} Nc6 {[%emt 0:00:00]} 5. c3 {[%emt 0:00:14]} Qc7 {[%emt 0:00:00]} 6. Nf3 {[%emt 0:00:13]} Bg4 {[%emt 0:01:55]} 7. Be3 {[%emt 0:00:11]} e6 {[%emt 0:01:49]} 8. O-O {[%emt 0:00:14]} Nf6 {[%emt 0:01:10]} 9. Nbd2 {[%emt 0:00:21]} Bd6 {[%emt 0:02:20]} 10. h3 {[%emt 0:01:06]} Bh5 {[%emt 0:00:09]} 11. Rc1 {[%emt 0:02:11]} O-O {[%emt 0:02:23]} 12. c4 {[%emt 0:05:26]} Bf4 {[%emt 0:21:35]} 13. c5 {[%emt 0:17:35]} Bxe3 {[%emt 0:08:38]} 14. fxe3 {[%emt 0:00:07]} e5 {[%emt 0:00:42]} 15. dxe5 {[%emt 0:03:04]} Nxe5 {[%emt 0:00:07]} 16. Be2 {[%emt 0:00:12]} Bg6 {[%emt 0:07:07]} 17. Nb3 {[%emt 0:05:33]} Rfe8 {[%emt 0:12:17]} 18. Qd4 {[%emt 0:06:43]} Nc4 {[%emt 0:19:10]} 19. Bxc4 {[%emt 0:06:05]} Re4 {[%emt 0:00:56]} 20. Qc3 {[%emt 0:02:45]} dxc4 {[%emt 0:00:57]} 21. Nbd2 {[%emt 0:05:41]} Nd5 {[%emt 0:00:33]} 22. Nxe4 {[%emt 0:03:18]} Nxc3 {[%emt 0:00:05]} 23. Nxc3 {[%emt 0:00:05]} Qxc5 {[%emt 0:00:12]} 24. Nd4 {[%emt 0:00:14]} h6 {[%emt 0:02:23]} 25. Rf4 {[%emt 0:08:52]} Re8 {[%emt 0:01:21]} 26. Nd1 {[%emt 0:05:36]} Qb4 {[%emt 0:02:38]} 27. Nf3 {[%emt 0:04:14]} Re4 {[%emt 0:02:46]} 28. a3 {[%emt 0:03:50]} Qd6 {[%emt 0:00:20]} 29. Rxe4 {[%emt 0:04:23]} Bxe4 {[%emt 0:00:04]} 30. Kf2 {[%emt 0:05:58]} Bxf3 {[%emt 0:01:27]} 31. Kxf3 {[%emt 0:00:06]} Qd2 {[%emt 0:02:38]} 32. Rb1 {[%emt 0:00:22]} b5 {[%emt 0:00:57]} 33. Nc3 {[%emt 0:02:53]} Qc2 {[%emt 0:02:52]} 34. Rd1 {[%emt 0:02:42]} Qxb2 {[%emt 0:00:12]} 35. Rd8+ {[%emt 0:00:56]} Kh7 {[%emt 0:00:04]} 36. Ne4 {[%emt 0:00:08]} c3 {[%emt 0:00:50]} 37. g4 {[%emt 0:00:17]} c2 {[%emt 0:00:08]} 0-1

[Event "RUS-ch Girls U21 2021"]
[Site "Loo"]
[Date "2021.04.21"]
[Round "1.10"]
[White "Kochukova, Anna"]
[Black "Stroganova, Karina"]
[Result "1-0"]
[ECO "C61"]
[WhiteElo "2108"]
[BlackElo "1731"]
[Annotator "ChessBase"]
[PlyCount "71"]
[EventDate "2021.04.21"]
[EventType "swiss"]
[EventCountry "RUS"]
[SourceTitle "playchess.com"]
[Source "ChessBase"]
[SourceQuality "1"]
[TimeControl "40/5400+30:1800+30"]

1. e4 {[%emt 0:00:00]} e5 {[%emt 0:00:00]} 2. Nf3 {[%emt 0:00:00]} Nc6 {[%emt 0:00:00]} 3. Bb5 {[%emt 0:00:00]} Nd4 {[%emt 0:00:09]} 4. Nxd4 {[%emt 0:01:09]} exd4 {[%emt 0:00:08]} 5. O-O {[%emt 0:00:51]} Bc5 {[%emt 0:00:18]} 6. d3 {[%emt 0:02:00]} c6 {[%emt 0:00:34]} 7. Bc4 {[%emt 0:00:26]} d5 {[%emt 0:00:23]} 8. exd5 {[%emt 0:02:42]} cxd5 {[%emt 0:00:08]} 9. Re1+ {[%emt 0:01:05]} Ne7 {[%emt 0:00:23]} 10. Bb3 {[%emt 0:00:26]} O-O {[%emt 0:02:03]} 11. Qf3 {[%emt 0:01:46]} Be6 {[%emt 0:02:08]} 12. Bg5 {[%emt 0:04:19]} Qd7 {[%emt 0:03:16]} 13. h3 {[%emt 0:02:19]} h6 {[%emt 0:01:01]} 14. Bf4 {[%emt 0:04:34]} Ng6 {[%emt 0:05:07]} 15. Nd2 {[%emt 0:03:56]} Rac8 {[%emt 0:04:25]} 16. a4 {[%emt 0:04:23]} a5 {[%emt 0:07:45]} 17. Re2 {[%emt 0:04:30]} Rc6 {[%emt 0:04:06]} 18. Bg3 {[%emt 0:06:12]} f5 {[%emt 0:03:12]} 19. Rxe6 {[%emt 0:02:36]} Rxe6 {[%emt 0:00:49]} 20. Qxd5 {[%emt 0:00:53]} Qxd5 {[%emt 0:00:55]} 21. Bxd5 {[%emt 0:00:01]} Rfe8 {[%emt 0:00:45]} 22. Re1 {[%emt 0:00:52]} Kf7 {[%emt 0:00:23]} 23. Rxe6 {[%emt 0:01:27]} Rxe6 {[%emt 0:00:07]} 24. Bc7 {[%emt 0:00:12]} Ne7 {[%emt 0:07:41]} 25. Bxe6+ {[%emt 0:00:26]} Kxe6 {[%emt 0:00:03]} 26. Nb3 {[%emt 0:00:24]} Ba7 {[%emt 0:01:03]} 27. Bxa5 {[%emt 0:00:31]} Nd5 {[%emt 0:03:57]} 28. Bd2 {[%emt 0:00:20]} g5 {[%emt 0:08:04]} 29. Na5 {[%emt 0:00:58]} b5 {[%emt 0:05:34]} 30. Nc6 {[%emt 0:01:14]} Bb6 {[%emt 0:00:07]} 31. axb5 {[%emt 0:07:17]} Kd7 {[%emt 0:03:15]} 32. Ne5+ {[%emt 0:01:02]} Ke6 {[%emt 0:00:16]} 33. Nc4 {[%emt 0:00:01]} Bc7 {[%emt 0:00:22]} 34. Kf1 {[%emt 0:00:49]} f4 {[%emt 0:00:41]} 35. Ke2 {[%emt 0:00:48]} h5 {[%emt 0:00:26]} 36. Ba5 {[%emt 0:02:26]} 1-0

[Event "RUS-ch Girls U21 2021"]
[Site "Loo"]
[Date "2021.04.22"]
[Round "2.1"]
[White "Shafigullina, Zarina"]
[Black "Sakorenko, Adriana"]
[Result "1/2-1/2"]
[ECO "D11"]
[WhiteElo "2293"]
[BlackElo "2216"]
[Annotator "ChessBase"]
[PlyCount "90"]
[EventDate "2021.04.21"]
[EventType "swiss"]
[EventCountry "RUS"]
[SourceTitle "playchess.com"]
[Source "ChessBase"]
[SourceQuality "1"]
[TimeControl "40/5400+30:1800+30"]

1. d4 {[%emt 0:00:00]} d5 {[%emt 0:00:00]} 2. c4 {[%emt 0:00:00]} c6 {[%emt 0:00:00]} 3. Nf3 {[%emt 0:00:00]} Nf6 {[%emt 0:00:00]} 4. g3 {[%emt 0:00:00]} Bf5 {[%emt 0:01:03]} 5. Bg2 {[%emt 0:00:17]} e6 {[%emt 0:00:35]} 6. O-O {[%emt 0:01:07]} Be7 {[%emt 0:01:03]} 7. Nc3 {[%emt 0:00:08]} h6 {[%emt 0:00:41]} 8. Nd2 {[%emt 0:00:23]} O-O {[%emt 0:01:00]} 9. e4 {[%emt 0:02:02]} dxe4 {[%emt 0:00:26]} 10. Ndxe4 {[%emt 0:00:09]} Nxe4 {[%emt 0:00:20]} 11. Nxe4 {[%emt 0:00:05]} Nd7 {[%emt 0:00:27]} 12. Be3 {[%emt 0:00:15]} Nf6 {[%emt 0:00:35]} 13. Nc3 {[%emt 0:00:07]} Rc8 {[%emt 0:01:29]} 14. h3 {[%emt 0:04:29]} Bd6 {[%emt 0:03:46]} 15. Qe2 {[%emt 0:02:11]} Bg6 {[%emt 0:02:31]} 16. a3 {[%emt 0:03:09]} Qe7 {[%emt 0:02:39]} 17. b4 {[%emt 0:07:29]} a6 {[%emt 0:01:13]} 18. f4 {[%emt 0:02:58]} Bb8 {[%emt 0:06:44]} 19. g4 {[%emt 0:10:29]} b5 {[%emt 0:05:03]} 20. c5 {[%emt 0:08:20]} Rfe8 {[%emt 0:04:49]} 21. Bd2 {[%emt 0:06:39]} Qc7 {[%emt 0:04:26]} 22. Qf2 {[%emt 0:12:05]} Re7 {[%emt 0:26:49]} 23. Rfe1 {[%emt 0:04:31]} Rce8 {[%emt 0:11:58]} 24. a4 {[%emt 0:03:19]} h5 {[%emt 0:05:03]} 25. Bf3 {[%emt 0:06:15]} hxg4 {[%emt 0:03:04]} 26. hxg4 {[%emt 0:00:04]} Bd3 {[%emt 0:00:16]} 27. axb5 {[%emt 0:05:39]} axb5 {[%emt 0:00:05]} 28. Kg2 {[%emt 0:01:51]} Nd5 {[%emt 0:01:51]} 29. Be4 {[%emt 0:11:17]} Bxe4+ {[%emt 0:01:48]} 30. Rxe4 {[%emt 0:00:07]} Nxc3 {[%emt 0:04:08]} 31. Bxc3 {[%emt 0:00:04]} f5 {[%emt 0:00:03]} 32. gxf5 {[%emt 0:05:03]} exf5 {[%emt 0:00:03]} 33. Qa2+ {[%emt 0:00:04]} Kf8 {[%emt 0:01:15]} 34. Re5 {[%emt 0:03:21]} Rxe5 {[%emt 0:02:17]} 35. dxe5 {[%emt 0:00:18]} Qf7 {[%emt 0:01:34]} 36. Qxf7+ {[%emt 0:00:45]} Kxf7 {[%emt 0:00:03]} 37. Ra8 {[%emt 0:01:28]} Ke6 {[%emt 0:02:31]} 38. Kf3 {[%emt 0:00:26]} Rh8 {[%emt 0:02:46]} 39. Be1 {[%emt 0:00:22]} g5 {[%emt 0:03:09]} 40. fxg5 {[%emt 0:00:00]} Bxe5 {[%emt 0:00:00]} 41. Rxh8 {[%emt 0:12:04]} Bxh8 {[%emt 0:00:17]} 42. Kg3 {[%emt 0:00:04]} Kf7 {[%emt 0:01:22]} 43. Kf4 {[%emt 0:01:02]} Kg6 {[%emt 0:16:55]} 44. Bd2 {[%emt 0:00:15]} Bg7 {[%emt 0:00:08]} 45. Be1 {[%emt 0:00:14]} Bd4 {[%emt 0:03:24]} 1/2-1/2

[Event "RUS-ch Girls U21 2021"]
[Site "Loo"]
[Date "2021.04.22"]
[Round "2.2"]
[White "Nosacheva, Mariya"]
[Black "Nasyrova, Ekaterina"]
[Result "1-0"]
[ECO "C65"]
[WhiteElo "2199"]
[BlackElo "2273"]
[Annotator "ChessBase"]
[PlyCount "61"]
[EventDate "2021.04.21"]
[EventType "swiss"]
[EventCountry "RUS"]
[SourceTitle "playchess.com"]
[Source "ChessBase"]
[SourceQuality "1"]
[TimeControl "40/5400+30:1800+30"]

1. e4 {[%emt 0:00:00]} e5 {[%emt 0:00:00]} 2. Nf3 {[%emt 0:00:00]} Nc6 {[%emt 0:00:00]} 3. Bb5 {[%emt 0:00:00]} Nf6 {[%emt 0:00:00]} 4. d3 {[%emt 0:00:00]} Bc5 {[%emt 0:00:16]} 5. Bxc6 {[%emt 0:00:08]} dxc6 {[%emt 0:00:40]} 6. Nbd2 {[%emt 0:00:09]} Qe7 {[%emt 0:14:48]} 7. Nc4 {[%emt 0:03:45]} Nd7 {[%emt 0:02:06]} 8. Bd2 {[%emt 0:03:05]} f6 {[%emt 0:07:45]} 9. Qe2 {[%emt 0:00:26]} Nf8 {[%emt 0:04:59]} 10. c3 {[%emt 0:24:05]} Ne6 {[%emt 0:04:34]} 11. O-O {[%emt 0:10:23]} Bd7 {[%emt 0:08:56]} 12. b4 {[%emt 0:03:25]} Bd6 {[%emt 0:01:50]} 13. a4 {[%emt 0:02:28]} g5 {[%emt 0:07:35]} 14. d4 {[%emt 0:02:09]} Nf4 {[%emt 0:02:42]} 15. Bxf4 {[%emt 0:02:22]} gxf4 {[%emt 0:00:23]} 16. dxe5 {[%emt 0:00:30]} fxe5 {[%emt 0:03:18]} 17. Nfxe5 {[%emt 0:00:07]} O-O-O {[%emt 0:08:07]} 18. Nxd6+ {[%emt 0:00:14]} cxd6 {[%emt 0:00:27]} 19. Nxd7 {[%emt 0:01:10]} Rxd7 {[%emt 0:01:11]} 20. b5 {[%emt 0:04:43]} c5 {[%emt 0:02:22]} 21. Qf3 {[%emt 0:02:02]} Qh4 {[%emt 0:05:58]} 22. Kh1 {[%emt 0:07:52]} h5 {[%emt 0:04:45]} 23. Rad1 {[%emt 0:05:50]} Qg4 {[%emt 0:05:26]} 24. Rd5 {[%emt 0:00:17]} Rg8 {[%emt 0:10:27]} 25. h3 {[%emt 0:04:26]} Qe6 {[%emt 0:03:17]} 26. Qxf4 {[%emt 0:02:21]} Rdg7 {[%emt 0:00:34]} 27. Rxd6 {[%emt 0:03:59]} Qc4 {[%emt 0:00:11]} 28. Rfd1 {[%emt 0:00:22]} Qxc3 {[%emt 0:00:39]} 29. Qf5+ {[%emt 0:03:35]} Kc7 {[%emt 0:00:40]} 30. Qe6 {[%emt 0:04:57]} a6 {[%emt 0:00:31]} 31. b6+ {[%emt 0:00:10]} 1-0

[Event "RUS-ch Girls U21 2021"]
[Site "Loo"]
[Date "2021.04.22"]
[Round "2.3"]
[White "Afonasieva, Anna"]
[Black "Kochukova, Anna"]
[Result "1-0"]
[ECO "D00"]
[WhiteElo "2270"]
[BlackElo "2108"]
[Annotator "ChessBase"]
[PlyCount "83"]
[EventDate "2021.04.21"]
[EventType "swiss"]
[EventCountry "RUS"]
[SourceTitle "playchess.com"]
[Source "ChessBase"]
[SourceQuality "1"]
[TimeControl "40/5400+30:1800+30"]

1. d4 {[%emt 0:00:00]} d5 {[%emt 0:00:00]} 2. Bf4 {[%emt 0:00:00]} Nf6 {[%emt 0:00:00]} 3. e3 {[%emt 0:00:00]} c5 {[%emt 0:00:42]} 4. c3 {[%emt 0:00:00]} Nc6 {[%emt 0:00:26]} 5. Nd2 {[%emt 0:00:01]} e6 {[%emt 0:00:38]} 6. Bd3 {[%emt 0:00:17]} Bd6 {[%emt 0:01:06]} 7. Bxd6 {[%emt 0:00:30]} Qxd6 {[%emt 0:00:30]} 8. f4 {[%emt 0:00:30]} cxd4 {[%emt 0:00:30]} 9. cxd4 {[%emt 0:00:30]} O-O {[%emt 0:00:30]} 10. a3 b6 11. g4 {[%emt 0:07:23]} Ne7 {[%emt 0:10:46]} 12. h3 {[%emt 0:04:56]} Bb7 {[%emt 0:01:04]} 13. Qb1 {[%emt 0:01:52]} Rac8 {[%emt 0:11:20]} 14. Ngf3 {[%emt 0:08:25]} g6 {[%emt 0:08:25]} 15. O-O {[%emt 0:02:26]} Rc7 {[%emt 0:00:44]} 16. Ne5 {[%emt 0:04:49]} Rfc8 {[%emt 0:04:58]} 17. h4 {[%emt 0:06:00]} Ne4 {[%emt 0:09:41]} 18. Nxe4 {[%emt 0:04:55]} dxe4 {[%emt 0:00:02]} 19. Bxe4 {[%emt 0:00:10]} Bxe4 {[%emt 0:04:35]} 20. Qxe4 {[%emt 0:00:06]} Rc2 {[%emt 0:03:59]} 21. Rf2 {[%emt 0:04:44]} Rxf2 {[%emt 0:06:00]} 22. Kxf2 {[%emt 0:00:06]} f6 {[%emt 0:01:58]} 23. Nf3 {[%emt 0:02:39]} Nd5 {[%emt 0:03:41]} 24. Re1 {[%emt 0:06:26]} f5 {[%emt 0:02:11]} 25. gxf5 {[%emt 0:02:14]} exf5 {[%emt 0:00:03]} 26. Qd3 {[%emt 0:04:33]} Nf6 {[%emt 0:00:51]} 27. Qb3+ {[%emt 0:02:22]} Kg7 {[%emt 0:00:11]} 28. Ng5 {[%emt 0:02:41]} Ne4+ {[%emt 0:08:52]} 29. Nxe4 {[%emt 0:03:09]} fxe4 {[%emt 0:00:02]} 30. Qb5 {[%emt 0:01:15]} Kg8 {[%emt 0:03:31]} 31. Qe5 {[%emt 0:07:53]} Qc6 {[%emt 0:08:31]} 32. d5 {[%emt 0:02:35]} Qc4 {[%emt 0:01:53]} 33. h5 {[%emt 0:01:57]} Qc2+ {[%emt 0:05:30]} 34. Re2 {[%emt 0:00:30]} Qc7 {[%emt 0:01:28]} 35. Qxe4 {[%emt 0:03:33]} Qd8 {[%emt 0:00:29]} 36. Qe6+ {[%emt 0:00:50]} Kf8 {[%emt 0:00:04]} 37. hxg6 {[%emt 0:00:36]} hxg6 {[%emt 0:01:15]} 38. Kg3 {[%emt 0:01:52]} Rc5 {[%emt 0:01:31]} 39. Rd2 {[%emt 0:00:51]} Kg7 {[%emt 0:00:35]} 40. d6 {[%emt 0:00:00]} Rh5 {[%emt 0:00:00]} 41. Rg2 {[%emt 0:06:46]} Rh1 {[%emt 0:05:37]} 42. Kf3 {[%emt 0:00:38]} 1-0

[Event "RUS-ch Girls U21 2021"]
[Site "Loo"]
[Date "2021.04.22"]
[Round "2.4"]
[White "Garmash, Aliona"]
[Black "Goltseva, Ekaterina"]
[Result "1/2-1/2"]
[ECO "E15"]
[WhiteElo "2120"]
[BlackElo "2269"]
[Annotator "ChessBase"]
[PlyCount "87"]
[EventDate "2021.04.21"]
[EventType "swiss"]
[EventCountry "RUS"]
[SourceTitle "playchess.com"]
[Source "ChessBase"]
[SourceQuality "1"]
[TimeControl "40/5400+30:1800+30"]

1. d4 {[%emt 0:00:00]} Nf6 {[%emt 0:00:00]} 2. c4 {[%emt 0:00:00]} e6 {[%emt 0:00:00]} 3. Nf3 {[%emt 0:00:00]} b6 {[%emt 0:00:00]} 4. g3 {[%emt 0:00:00]} Ba6 {[%emt 0:00:00]} 5. Qc2 {[%emt 0:00:00]} Bb7 {[%emt 0:00:08]} 6. Bg2 {[%emt 0:00:26]} Bb4+ {[%emt 0:00:10]} 7. Bd2 {[%emt 0:00:51]} Bxd2+ {[%emt 0:00:10]} 8. Qxd2 {[%emt 0:02:45]} O-O {[%emt 0:00:30]} 9. O-O {[%emt 0:00:30]} d5 10. cxd5 exd5 {[%emt 0:05:03]} 11. Nc3 {[%emt 0:08:00]} Nbd7 {[%emt 0:00:48]} 12. Rac1 {[%emt 0:03:35]} c6 {[%emt 0:02:03]} 13. Rc2 {[%emt 0:15:03]} Re8 {[%emt 0:07:20]} 14. Rfc1 {[%emt 0:09:59]} a5 {[%emt 0:23:08]} 15. Qf4 {[%emt 0:07:44]} Qe7 {[%emt 0:16:21]} 16. h4 {[%emt 0:14:00]} Nf8 {[%emt 0:05:08]} 17. Qd2 {[%emt 0:18:28]} Ne6 {[%emt 0:02:25]} 18. e3 {[%emt 0:00:58]} a4 {[%emt 0:15:28]} 19. Ne5 {[%emt 0:01:58]} Nd7 {[%emt 0:03:34]} 20. Nd3 {[%emt 0:01:27]} Qd6 {[%emt 0:02:28]} 21. b4 {[%emt 0:03:21]} axb3 {[%emt 0:02:09]} 22. axb3 {[%emt 0:00:04]} Qe7 {[%emt 0:04:41]} 23. Na4 {[%emt 0:01:25]} Rab8 {[%emt 0:03:49]} 24. Nb4 {[%emt 0:01:03]} Nd8 {[%emt 0:01:09]} 25. Bh3 {[%emt 0:00:44]} Nf6 {[%emt 0:01:50]} 26. Nxb6 {[%emt 0:06:36]} Ne4 {[%emt 0:00:05]} 27. Qe1 {[%emt 0:00:03]} Ba8 {[%emt 0:00:46]} 28. Nxa8 {[%emt 0:00:59]} Rxb4 {[%emt 0:00:16]} 29. Nc7 {[%emt 0:00:42]} Rf8 {[%emt 0:00:06]} 30. Na6 {[%emt 0:01:59]} Rxb3 {[%emt 0:00:16]} 31. Nc5 {[%emt 0:00:16]} Nxc5 {[%emt 0:02:36]} 32. Rxc5 {[%emt 0:00:05]} Re8 {[%emt 0:00:20]} 33. Qd2 {[%emt 0:01:07]} Qb7 {[%emt 0:00:59]} 34. R5c2 {[%emt 0:01:28]} g6 {[%emt 0:00:37]} 35. Qa5 {[%emt 0:00:36]} Rb5 {[%emt 0:00:43]} 36. Qa2 {[%emt 0:00:16]} Re7 {[%emt 0:00:34]} 37. Bf1 {[%emt 0:00:33]} Rb6 {[%emt 0:00:22]} 38. Qa4 {[%emt 0:01:01]} Kg7 {[%emt 0:00:26]} 39. Qa3 {[%emt 0:00:28]} Rc7 {[%emt 0:01:31]} 40. Bg2 {[%emt 0:00:00]} Rd7 {[%emt 0:00:00]} 41. Bh3 {[%emt 0:04:18]} Qa7 {[%emt 0:08:30]} 42. Qc5 {[%emt 0:11:22]} Rb5 {[%emt 0:01:19]} 43. Qxa7 {[%emt 0:00:36]} Rxa7 {[%emt 0:00:04]} 44. Bf1 {[%emt 0:05:42]} 1/2-1/2

[Event "RUS-ch Girls U21 2021"]
[Site "Loo"]
[Date "2021.04.22"]
[Round "2.5"]
[White "Bogdanova, Darya"]
[Black "Koroleva, Evgeniya"]
[Result "0-1"]
[ECO "D25"]
[WhiteElo "1762"]
[BlackElo "1884"]
[Annotator "NA"]
[PlyCount "90"]
[EventDate "2021.04.21"]
[EventType "swiss"]
[EventCountry "RUS"]
[SourceTitle "playchess.com"]
[Source "ChessBase"]
[SourceQuality "1"]
[TimeControl "40/5400+30:1800+30"]

1. d4 {[%emt 0:00:00]} d5 {[%emt 0:00:00]} 2. c4 {[%emt 0:00:00]} dxc4 {[%emt 0:00:00]} 3. Nf3 {[%emt 0:00:00]} Nf6 {[%emt 0:00:09]} 4. e3 {[%emt 0:00:00]} a6 {[%emt 0:00:34]} 5. Bxc4 {[%emt 0:00:26]} e6 {[%emt 0:00:07]} 6. Qe2 {[%emt 0:00:25]} c5 {[%emt 0:02:01]} 7. dxc5 {[%emt 0:00:30]} Bxc5 {[%emt 0:00:30]} 8. O-O {[%emt 0:00:30]} Qc7 9. e4 {[%emt 0:07:56]} Ng4 {[%emt 0:13:41]} 10. e5 {[%emt 0:01:14]} Nxf2 {[%emt 0:22:20]} 11. Nc3 {[%emt 0:01:23]} Ne4+ {[%emt 0:09:42]} 12. Kh1 {[%emt 0:00:34]} Nxc3 {[%emt 0:00:11]} 13. bxc3 {[%emt 0:00:07]} Be7 {[%emt 0:00:03]} 14. Nd4 {[%emt 0:10:25]} Nc6 {[%emt 0:04:51]} 15. Bf4 {[%emt 0:09:12]} Bd7 {[%emt 0:04:55]} 16. Rf3 {[%emt 0:11:35]} Na5 {[%emt 0:08:08]} 17. Bd3 {[%emt 0:09:06]} Qxc3 {[%emt 0:09:49]} 18. Nc2 {[%emt 0:00:31]} Qc7 {[%emt 0:04:38]} 19. Rg3 {[%emt 0:02:00]} g6 {[%emt 0:01:22]} 20. Rf1 {[%emt 0:16:26]} Bc6 {[%emt 0:02:02]} 21. Bd2 {[%emt 0:04:27]} Bd5 {[%emt 0:11:59]} 22. Qf2 {[%emt 0:13:52]} O-O-O {[%emt 0:00:16]} 23. Nb4 {[%emt 0:04:44]} Nc6 {[%emt 0:01:45]} 24. Nxc6 {[%emt 0:01:22]} Bxc6 {[%emt 0:00:14]} 25. Qxf7 {[%emt 0:00:50]} Qd7 {[%emt 0:02:11]} 26. Bh6 {[%emt 0:01:37]} Bd5 {[%emt 0:00:45]} 27. Qf4 {[%emt 0:03:21]} Kb8 {[%emt 0:00:20]} 28. a4 {[%emt 0:00:35]} Rc8 {[%emt 0:00:15]} 29. Rb1 {[%emt 0:00:18]} Ka8 {[%emt 0:00:22]} 30. Be2 {[%emt 0:00:55]} Rc7 {[%emt 0:00:45]} 31. Qf1 {[%emt 0:00:29]} Rhc8 {[%emt 0:00:31]} 32. Be3 {[%emt 0:00:15]} Bc5 {[%emt 0:00:27]} 33. Bxc5 {[%emt 0:00:36]} Rxc5 {[%emt 0:00:05]} 34. Rg4 {[%emt 0:00:29]} Qc7 {[%emt 0:01:15]} 35. Rd1 {[%emt 0:00:41]} Rc1 {[%emt 0:00:40]} 36. Rgd4 {[%emt 0:00:29]} Rxd1 {[%emt 0:00:08]} 37. Rxd1 {[%emt 0:00:08]} Ka7 {[%emt 0:00:37]} 38. Qf4 {[%emt 0:00:32]} Qc6 {[%emt 0:00:24]} 39. Bf3 {[%emt 0:00:50]} Rd8 {[%emt 0:00:48]} 40. Rc1 {[%emt 0:00:00]} Qb6 {[%emt 0:00:00]} 41. Be2 {[%emt 0:08:17]} Qb2 {[%emt 0:03:51]} 42. Qe3+ {[%emt 0:01:23]} Qb6 {[%emt 0:00:07]} 43. Qf4 {[%emt 0:03:09]} Bc6 {[%emt 0:01:00]} 44. Qc4 {[%emt 0:05:10]} Qf2 {[%emt 0:06:51]} 45. Qg4 {[%emt 0:00:36]} h5 {[%emt 0:01:02]} 0-1

[Event "RUS-ch Girls U21 2021"]
[Site "Loo"]
[Date "2021.04.22"]
[Round "2.6"]
[White "Grigorieva, Yulia"]
[Black "Zotova, Anastasia"]
[Result "0-1"]
[ECO "B52"]
[WhiteElo "2236"]
[BlackElo "2160"]
[Annotator "ChessBase"]
[PlyCount "122"]
[EventDate "2021.04.21"]
[EventType "swiss"]
[EventCountry "RUS"]
[SourceTitle "playchess.com"]
[Source "ChessBase"]
[SourceQuality "1"]
[TimeControl "40/5400+30:1800+30"]

1. e4 {[%emt 0:00:00]} c5 {[%emt 0:00:00]} 2. Nf3 {[%emt 0:00:00]} d6 {[%emt 0:00:27]} 3. Bb5+ {[%emt 0:00:00]} Bd7 {[%emt 0:00:07]} 4. Bxd7+ {[%emt 0:00:00]} Qxd7 {[%emt 0:00:05]} 5. c4 {[%emt 0:00:05]} Nc6 {[%emt 0:00:24]} 6. d4 {[%emt 0:04:53]} Qg4 {[%emt 0:12:27]} 7. d5 {[%emt 0:21:52]} Qxe4+ {[%emt 0:03:23]} 8. Be3 {[%emt 0:00:15]} Nd4 {[%emt 0:02:32]} 9. Nxd4 {[%emt 0:10:21]} cxd4 {[%emt 0:00:44]} 10. Qxd4 {[%emt 0:07:51]} Qxg2 {[%emt 0:00:25]} 11. Rf1 {[%emt 0:00:42]} Nf6 {[%emt 0:02:11]} 12. Nc3 {[%emt 0:01:48]} Qg4 {[%emt 0:01:08]} 13. f4 {[%emt 0:08:19]} a6 {[%emt 0:07:41]} 14. Rg1 {[%emt 0:06:08]} Qd7 {[%emt 0:00:55]} 15. O-O-O {[%emt 0:01:03]} g6 {[%emt 0:00:28]} 16. Qd3 {[%emt 0:03:03]} Rc8 {[%emt 0:04:37]} 17. Bd4 {[%emt 0:03:21]} Bg7 {[%emt 0:01:12]} 18. f5 {[%emt 0:02:49]} Bh6+ {[%emt 0:03:32]} 19. Kc2 {[%emt 0:04:18]} Qxf5 {[%emt 0:04:16]} 20. Qxf5 {[%emt 0:00:27]} gxf5 {[%emt 0:00:05]} 21. Bxf6 {[%emt 0:02:18]} exf6 {[%emt 0:00:06]} 22. Kb3 {[%emt 0:03:06]} Kd7 {[%emt 0:01:13]} 23. Rdf1 {[%emt 0:01:43]} f4 {[%emt 0:03:42]} 24. Ne4 {[%emt 0:01:41]} f5 {[%emt 0:05:46]} 25. Ng5 {[%emt 0:01:31]} Ke7 {[%emt 0:06:06]} 26. h4 {[%emt 0:05:24]} b5 {[%emt 0:18:21]} 27. cxb5 {[%emt 0:01:53]} axb5 {[%emt 0:01:18]} 28. Rxf4 {[%emt 0:06:54]} f6 {[%emt 0:00:58]} 29. Re1+ {[%emt 0:00:06]} Kd7 {[%emt 0:00:03]} 30. Rxf5 {[%emt 0:01:10]} fxg5 {[%emt 0:00:06]} 31. Rf7+ {[%emt 0:01:15]} Kd8 {[%emt 0:00:07]} 32. Ree7 {[%emt 0:00:54]} Bf8 {[%emt 0:00:15]} 33. Rd7+ {[%emt 0:00:16]} Ke8 {[%emt 0:00:05]} 34. hxg5 {[%emt 0:00:11]} Rg8 {[%emt 0:00:05]} 35. Rxh7 {[%emt 0:00:54]} Rxg5 {[%emt 0:00:04]} 36. Rb7 {[%emt 0:00:46]} Rxd5 {[%emt 0:00:12]} 37. Kb4 {[%emt 0:00:38]} Rd1 {[%emt 0:03:52]} 38. Kxb5 {[%emt 0:00:23]} d5 {[%emt 0:00:05]} 39. Rbf7 {[%emt 0:00:35]} Rd8 {[%emt 0:01:22]} 40. Rf5 {[%emt 0:00:00]} Re1 {[%emt 0:00:00]} 41. Rhh5 {[%emt 0:11:12]} d4 {[%emt 0:02:28]} 42. Rd5 {[%emt 0:01:51]} Rxd5+ {[%emt 0:00:12]} 43. Rxd5 {[%emt 0:00:06]} Bg7 {[%emt 0:00:05]} 44. a4 {[%emt 0:03:51]} Ke7 {[%emt 0:04:27]} 45. a5 {[%emt 0:01:46]} Ke6 {[%emt 0:00:50]} 46. Rd8 {[%emt 0:02:50]} Re5+ {[%emt 0:00:12]} 47. Kb6 {[%emt 0:02:12]} Rd5 {[%emt 0:00:26]} 48. Re8+ {[%emt 0:02:14]} Kd7 {[%emt 0:02:05]} 49. Re1 {[%emt 0:04:06]} d3 {[%emt 0:00:25]} 50. a6 {[%emt 0:02:36]} d2 {[%emt 0:01:01]} 51. Rd1 {[%emt 0:00:14]} Bxb2 {[%emt 0:00:07]} 52. Kb7 {[%emt 0:01:05]} Rb5+ {[%emt 0:00:49]} 53. Ka8 {[%emt 0:00:57]} Rd5 {[%emt 0:02:47]} 54. Kb7 {[%emt 0:00:29]} Rb5+ {[%emt 0:01:49]} 55. Ka8 {[%emt 0:00:05]} Bc3 {[%emt 0:02:10]} 56. a7 {[%emt 0:01:01]} Rb2 {[%emt 0:08:50]} 57. Rxd2+ {[%emt 0:02:24]} Rxd2 {[%emt 0:00:08]} 58. Kb7 {[%emt 0:00:02]} Rb2+ {[%emt 0:00:07]} 59. Ka8 {[%emt 0:00:06]} Bb4 {[%emt 0:00:07]} 60. Kb8 {[%emt 0:00:44]} Bc5+ {[%emt 0:00:14]} 61. Ka8 {[%emt 0:00:04]} Bxa7 {[%emt 0:00:14]} 0-1